[Event "Titled Tuesday Blitz August 15 Late 2023"]
[White "Vlassov, Nikolai"]
[Black "MrAnnihilation"]
[WhiteFideId "4103360"]
[WhiteElo "2601"]
[BlackElo "2432"]
[Result "0-1"]
[Round "4"]
[TimeControl "180+1"]
[Date "2023.08.15"]
[WhiteClock "0:00:07"]
[BlackClock "0:00:10"]
[Board "90"]

1. e4 {[%clk 0:03:00]}  d6 {[%clk 0:02:57]} 2. f4 {[%clk 0:02:56]}  g6 {[%clk 0:02:56]} 3. Nc3 {[%clk 0:02:56]}  Bg7 {[%clk 0:02:56]} 4. Nf3 {[%clk 0:02:56]}  e6 {[%clk 0:02:52]} 5. d4 {[%clk 0:02:49]}  Ne7 {[%clk 0:02:52]} 6. Be3 {[%clk 0:02:48]}  Nd7 {[%clk 0:02:53]} 7. Qd2 {[%clk 0:02:48]}  a6 {[%clk 0:02:48]} 8. O-O-O {[%clk 0:02:46]}  b5 {[%clk 0:02:48]} 9. h4 {[%clk 0:02:39]}  h5 {[%clk 0:02:37]} 10. Ng5 {[%clk 0:02:39]}  Nf6 {[%clk 0:02:34]} 11. Be2 {[%clk 0:02:34]}  b4 {[%clk 0:02:25]} 12. Na4 {[%clk 0:02:32]}  Bb7 {[%clk 0:02:25]} 13. Bf3 {[%clk 0:02:31]}  a5 {[%clk 0:02:21]} 14. e5 {[%clk 0:02:26]}  Nfd5 {[%clk 0:02:18]} 15. c4 {[%clk 0:02:22]}  bxc3 {[%clk 0:02:01]} 16. bxc3 {[%clk 0:02:13]}  Qd7 {[%clk 0:01:50]} 17. Nb2 {[%clk 0:02:12]}  Rb8 {[%clk 0:01:40]} 18. a3 {[%clk 0:02:02]}  Nxe3 {[%clk 0:00:57]} 19. Qxe3 {[%clk 0:02:02]}  Bxf3 {[%clk 0:00:57]} 20. Qxf3 {[%clk 0:01:57]}  Qb5 {[%clk 0:00:57]} 21. Rd2 {[%clk 0:01:56]}  Qb3 {[%clk 0:00:47]} 22. c4 {[%clk 0:01:37]}  Qa2 {[%clk 0:00:43]} 23. Qd3 {[%clk 0:01:36]}  Rb3 {[%clk 0:00:39]} 24. Qb1 {[%clk 0:01:27]}  Qxa3 {[%clk 0:00:39]} 25. Rh3 {[%clk 0:01:17]}  a4 {[%clk 0:00:35]} 26. Rxb3 {[%clk 0:01:14]}  axb3 {[%clk 0:00:33]} 27. Kd1 {[%clk 0:01:01]}  O-O {[%clk 0:00:33]} 28. Nd3 {[%clk 0:01:00]}  Nf5 {[%clk 0:00:30]} 29. Nc1 {[%clk 0:00:55]}  Rb8 {[%clk 0:00:28]} 30. Rd3 {[%clk 0:00:48]}  Qa4 {[%clk 0:00:22]} 31. Ke2 {[%clk 0:00:30]}  Qxc4 {[%clk 0:00:21]} 32. Qb2 {[%clk 0:00:21]}  c5 {[%clk 0:00:19]} 33. Kf2 {[%clk 0:00:14]}  cxd4 {[%clk 0:00:19]} 34. Rxb3 {[%clk 0:00:08]}  Rxb3 {[%clk 0:00:18]} 35. Nxb3 {[%clk 0:00:09]}  dxe5 {[%clk 0:00:15]} 36. fxe5 {[%clk 0:00:09]}  Bxe5 {[%clk 0:00:15]} 37. Nd2 {[%clk 0:00:10]}  Qd3 {[%clk 0:00:14]} 38. Ndf3 {[%clk 0:00:09]}  Qe3+ {[%clk 0:00:13]} 39. Kf1 {[%clk 0:00:09]}  d3 {[%clk 0:00:13]} 40. Qf2 {[%clk 0:00:06]}  Ng3+ {[%clk 0:00:09]} 41. Kg1 {[%clk 0:00:06]}  Bf4 {[%clk 0:00:07]} 42. Qxe3 {[%clk 0:00:04]}  Bxe3+ {[%clk 0:00:08]} 43. Kh2 {[%clk 0:00:05]}  Nf5 {[%clk 0:00:06]} 44. Ne4 {[%clk 0:00:05]}  Kg7 {[%clk 0:00:02]} 45. Kh3 {[%clk 0:00:05]}  f6 {[%clk 0:00:03]} 46. g4 {[%clk 0:00:06]}  hxg4+ {[%clk 0:00:02]} 47. Kxg4 {[%clk 0:00:07]}  e5 {[%clk 0:00:03]} 48. h5 {[%clk 0:00:07]}  Nd4 {[%clk 0:00:03]} 49. Nfd2 {[%clk 0:00:06]}  f5+ {[%clk 0:00:03]} 50. Kg3 {[%clk 0:00:06]}  fxe4 {[%clk 0:00:04]} 51. Nxe4 {[%clk 0:00:06]}  Bf4+ {[%clk 0:00:04]} 52. Kg4 {[%clk 0:00:07]}  d2 {[%clk 0:00:05]} 53. Nf2 {[%clk 0:00:07]}  gxh5+ {[%clk 0:00:05]} 54. Kxh5 {[%clk 0:00:07]}  Ne2 {[%clk 0:00:05]} 55. Nd1 {[%clk 0:00:07]}  Kf6 {[%clk 0:00:05]} 56. Kg4 {[%clk 0:00:08]}  Ke6 {[%clk 0:00:06]} 57. Kf3 {[%clk 0:00:08]}  Nd4+ {[%clk 0:00:05]} 58. Ke4 {[%clk 0:00:08]}  Kd6 {[%clk 0:00:06]} 59. Nc3 {[%clk 0:00:09]}  Kc5 {[%clk 0:00:06]} 60. Kd3 {[%clk 0:00:09]}  Kb4 {[%clk 0:00:06]} 61. Nd1 {[%clk 0:00:09]}  Kb3 {[%clk 0:00:07]} 62. Nf2 {[%clk 0:00:10]}  Bg3 {[%clk 0:00:07]} 63. Nd1 {[%clk 0:00:10]}  Be1 {[%clk 0:00:06]} 64. Ne3 {[%clk 0:00:10]}  Kb2 {[%clk 0:00:07]} 65. Nc4+ {[%clk 0:00:08]}  Kc1 {[%clk 0:00:07]} 66. Nxd2 {[%clk 0:00:09]}  Bxd2 {[%clk 0:00:07]} 67. Ke4 {[%clk 0:00:10]}  Bf4 {[%clk 0:00:07]} 68. Kd5 {[%clk 0:00:10]}  Kb2 {[%clk 0:00:08]} 69. Ke4 {[%clk 0:00:10]}  Kc2 {[%clk 0:00:09]} 70. Kd5 {[%clk 0:00:07]}  Kd3 {[%clk 0:00:10]} 0-1


[Site "https://www.chess.com"]

[Event "Titled Tuesday Blitz August 15 Late 2023"]
[White "The_Straightforward_Rook"]
[Black "Ibadov, Dashgyn"]
[BlackFideId "24107514"]
[WhiteElo "2431"]
[BlackElo "2597"]
[Result "0-1"]
[Round "4"]
[TimeControl "180+1"]
[Date "2023.08.15"]
[WhiteClock "0:00:36"]
[BlackClock "0:00:07"]
[Board "91"]

1. d4 {[%clk 0:02:56]}  Nf6 {[%clk 0:02:59]} 2. c4 {[%clk 0:02:56]}  c5 {[%clk 0:03:00]} 3. d5 {[%clk 0:02:56]}  d6 {[%clk 0:03:00]} 4. Nc3 {[%clk 0:02:56]}  g6 {[%clk 0:03:01]} 5. e4 {[%clk 0:02:56]}  Bg7 {[%clk 0:03:01]} 6. h4 {[%clk 0:02:54]}  h6 {[%clk 0:02:46]} 7. Bd3 {[%clk 0:02:51]}  e6 {[%clk 0:02:44]} 8. Nge2 {[%clk 0:02:49]}  O-O {[%clk 0:02:43]} 9. Ng3 {[%clk 0:02:49]}  exd5 {[%clk 0:02:41]} 10. exd5 {[%clk 0:02:49]}  Re8+ {[%clk 0:02:40]} 11. Kf1 {[%clk 0:02:46]}  Nbd7 {[%clk 0:02:21]} 12. h5 {[%clk 0:02:42]}  g5 {[%clk 0:02:19]} 13. Nf5 {[%clk 0:02:42]}  Ne5 {[%clk 0:02:16]} 14. Nxg7 {[%clk 0:02:42]}  Kxg7 {[%clk 0:02:17]} 15. f3 {[%clk 0:02:35]}  Nxd3 {[%clk 0:02:10]} 16. Qxd3 {[%clk 0:02:36]}  Qd7 {[%clk 0:02:10]} 17. Kf2 {[%clk 0:02:33]}  Qf5 {[%clk 0:02:08]} 18. Qxf5 {[%clk 0:02:28]}  Bxf5 {[%clk 0:02:09]} 19. g4 {[%clk 0:02:28]}  Bd3 {[%clk 0:02:09]} 20. b3 {[%clk 0:02:27]}  a6 {[%clk 0:02:02]} 21. Rd1 {[%clk 0:02:23]}  Bc2 {[%clk 0:02:02]} 22. Rd2 {[%clk 0:02:21]}  Bh7 {[%clk 0:02:02]} 23. Bb2 {[%clk 0:02:21]}  Kf8 {[%clk 0:01:52]} 24. a4 {[%clk 0:02:18]}  Nd7 {[%clk 0:01:50]} 25. Re1 {[%clk 0:02:13]}  Rxe1 {[%clk 0:01:48]} 26. Kxe1 {[%clk 0:02:14]}  Ne5 {[%clk 0:01:49]} 27. Kf2 {[%clk 0:02:07]}  Re8 {[%clk 0:01:39]} 28. Kg3 {[%clk 0:02:06]}  Ke7 {[%clk 0:01:34]} 29. Re2 {[%clk 0:02:03]}  Kd7 {[%clk 0:01:34]} 30. Ne4 {[%clk 0:02:01]}  Bxe4 {[%clk 0:01:26]} 31. Rxe4 {[%clk 0:02:02]}  f6 {[%clk 0:01:17]} 32. Bxe5 {[%clk 0:01:52]}  fxe5 {[%clk 0:01:15]} 33. Re2 {[%clk 0:01:44]}  Rf8 {[%clk 0:01:13]} 34. Kf2 {[%clk 0:01:41]}  Rf4 {[%clk 0:01:11]} 35. Re4 {[%clk 0:01:41]}  Kc7 {[%clk 0:00:54]} 36. Rxf4 {[%clk 0:01:39]}  exf4 {[%clk 0:00:55]} 37. Ke2 {[%clk 0:01:39]}  Kb6 {[%clk 0:00:55]} 38. Kd3 {[%clk 0:01:37]}  Ka5 {[%clk 0:00:55]} 39. Ke4 {[%clk 0:01:25]}  Kb4 {[%clk 0:00:41]} 40. Kf5 {[%clk 0:01:25]}  Kxb3 {[%clk 0:00:42]} 41. Kg6 {[%clk 0:01:14]}  Kxc4 {[%clk 0:00:41]} 42. Kxh6 {[%clk 0:01:15]}  b5 {[%clk 0:00:42]} 43. axb5 {[%clk 0:01:12]}  axb5 {[%clk 0:00:43]} 44. Kxg5 {[%clk 0:01:11]}  b4 {[%clk 0:00:43]} 45. h6 {[%clk 0:01:12]}  b3 {[%clk 0:00:44]} 46. h7 {[%clk 0:01:13]}  b2 {[%clk 0:00:45]} 47. h8=Q {[%clk 0:01:13]}  b1=Q {[%clk 0:00:46]} 48. Qg8 {[%clk 0:01:03]}  Qd3 {[%clk 0:00:33]} 49. Kxf4 {[%clk 0:01:00]}  Qd4+ {[%clk 0:00:21]} 50. Kg5 {[%clk 0:00:55]}  Qe5+ {[%clk 0:00:14]} 51. Kh4 {[%clk 0:00:50]}  Kd4 {[%clk 0:00:10]} 52. Qe6 {[%clk 0:00:41]}  c4 {[%clk 0:00:08]} 53. g5 {[%clk 0:00:38]}  Qf4+ {[%clk 0:00:05]} 54. Qg4 {[%clk 0:00:36]}  Qxg4+ {[%clk 0:00:05]} 55. Kxg4 {[%clk 0:00:37]}  c3 {[%clk 0:00:06]} 56. Kf5 {[%clk 0:00:35]}  c2 {[%clk 0:00:07]} 57. g6 {[%clk 0:00:36]}  c1=Q {[%clk 0:00:08]} 58. Kf6 {[%clk 0:00:35]}  Qf4+ {[%clk 0:00:07]} 59. Ke7 {[%clk 0:00:34]}  Kxd5 {[%clk 0:00:07]} 60. g7 {[%clk 0:00:34]}  Qg5+ {[%clk 0:00:07]} 61. Kf8 {[%clk 0:00:34]}  Qf6+ {[%clk 0:00:07]} 62. Kg8 {[%clk 0:00:34]}  Ke6 {[%clk 0:00:08]} 63. Kh7 {[%clk 0:00:34]}  Qh4+ {[%clk 0:00:07]} 64. Kg8 {[%clk 0:00:34]}  Kf6 {[%clk 0:00:07]} 65. Kf8 {[%clk 0:00:34]}  Qh6 {[%clk 0:00:07]} 66. Ke8 {[%clk 0:00:34]}  Qxg7 {[%clk 0:00:07]} 67. Kd8 {[%clk 0:00:34]}  d5 {[%clk 0:00:07]} 68. Kc8 {[%clk 0:00:34]}  Ke6 {[%clk 0:00:07]} 69. f4 {[%clk 0:00:35]}  Kd6 {[%clk 0:00:07]} 70. f5 {[%clk 0:00:36]}  Qc7# {[%clk 0:00:07]} 0-1


[Site "https://www.chess.com"]

[Event "Titled Tuesday Blitz August 15 Late 2023"]
[White "maksimys18"]
[Black "Silva Lucena, Cristian"]
[BlackFideId "2232588"]
[WhiteElo "2556"]
[BlackElo "2380"]
[Result "1-0"]
[Round "4"]
[TimeControl "180+1"]
[Date "2023.08.15"]
[WhiteClock "0:02:27"]
[BlackClock "0:01:58"]
[Board "94"]

1. d4 {[%clk 0:02:59]}  d5 {[%clk 0:02:59]} 2. Nf3 {[%clk 0:03:00]}  e6 {[%clk 0:02:56]} 3. c4 {[%clk 0:03:00]}  dxc4 {[%clk 0:02:57]} 4. Nc3 {[%clk 0:03:00]}  a6 {[%clk 0:02:57]} 5. a4 {[%clk 0:02:59]}  Bb4 {[%clk 0:02:56]} 6. Bg5 {[%clk 0:02:59]}  Be7 {[%clk 0:02:54]} 7. Bxe7 {[%clk 0:02:58]}  Qxe7 {[%clk 0:02:55]} 8. e4 {[%clk 0:02:59]}  c5 {[%clk 0:02:51]} 9. d5 {[%clk 0:02:57]}  exd5 {[%clk 0:02:52]} 10. Nxd5 {[%clk 0:02:46]}  Qxe4+ {[%clk 0:02:33]} 11. Be2 {[%clk 0:02:45]}  Kf8 {[%clk 0:02:06]} 12. Nb6 {[%clk 0:02:44]}  Nc6 {[%clk 0:02:03]} 13. Nxa8 {[%clk 0:02:40]}  Nge7 {[%clk 0:02:01]} 14. O-O {[%clk 0:02:38]}  h5 {[%clk 0:02:00]} 15. Nb6 {[%clk 0:02:34]}  Be6 {[%clk 0:01:59]} 16. Rc1 {[%clk 0:02:29]}  Na5 {[%clk 0:01:58]} 17. Qd8# {[%clk 0:02:27]} 1-0


[Site "https://www.chess.com"]

[Event "Titled Tuesday Blitz August 15 Late 2023"]
[White "D`Arruda, Ricardo D."]
[Black "Jahnz, Fabian"]
[WhiteFideId "100692"]
[BlackFideId "4653300"]
[WhiteElo "2532"]
[BlackElo "2352"]
[Result "1-0"]
[Round "4"]
[TimeControl "180+1"]
[Date "2023.08.15"]
[WhiteClock "0:01:28"]
[BlackClock "0:00:14"]
[Board "97"]

1. d4 {[%clk 0:03:00]}  d5 {[%clk 0:02:59]} 2. Nf3 {[%clk 0:03:01]}  Bf5 {[%clk 0:02:59]} 3. c4 {[%clk 0:03:00]}  e6 {[%clk 0:02:59]} 4. e3 {[%clk 0:03:00]}  c6 {[%clk 0:02:58]} 5. Nc3 {[%clk 0:03:00]}  Nf6 {[%clk 0:02:57]} 6. Bd3 {[%clk 0:03:00]}  Bxd3 {[%clk 0:02:57]} 7. Qxd3 {[%clk 0:03:00]}  Nbd7 {[%clk 0:02:58]} 8. O-O {[%clk 0:03:00]}  Be7 {[%clk 0:02:58]} 9. e4 {[%clk 0:03:00]}  dxe4 {[%clk 0:02:58]} 10. Nxe4 {[%clk 0:03:01]}  Nxe4 {[%clk 0:02:58]} 11. Qxe4 {[%clk 0:03:01]}  O-O {[%clk 0:02:59]} 12. Bf4 {[%clk 0:03:00]}  Nf6 {[%clk 0:02:54]} 13. Qe2 {[%clk 0:03:00]}  Bd6 {[%clk 0:02:49]} 14. Bg5 {[%clk 0:02:55]}  h6 {[%clk 0:02:48]} 15. Bh4 {[%clk 0:02:54]}  Be7 {[%clk 0:02:48]} 16. Rad1 {[%clk 0:02:54]}  Qa5 {[%clk 0:02:42]} 17. a3 {[%clk 0:02:51]}  Rad8 {[%clk 0:02:39]} 18. h3 {[%clk 0:02:45]}  Rfe8 {[%clk 0:02:36]} 19. Rfe1 {[%clk 0:02:45]}  c5 {[%clk 0:02:26]} 20. dxc5 {[%clk 0:02:39]}  Rxd1 {[%clk 0:02:22]} 21. Rxd1 {[%clk 0:02:38]}  Qxc5 {[%clk 0:02:20]} 22. Ne5 {[%clk 0:02:37]}  Rd8 {[%clk 0:01:59]} 23. Rxd8+ {[%clk 0:02:36]}  Bxd8 {[%clk 0:02:00]} 24. b4 {[%clk 0:02:13]}  Qd6 {[%clk 0:01:51]} 25. Bg3 {[%clk 0:02:10]}  Qe7 {[%clk 0:01:45]} 26. Qd3 {[%clk 0:02:02]}  Bc7 {[%clk 0:01:40]} 27. c5 {[%clk 0:02:02]}  Nd5 {[%clk 0:01:35]} 28. Nc4 {[%clk 0:02:02]}  Bxg3 {[%clk 0:01:34]} 29. Qxg3 {[%clk 0:02:03]}  Qd8 {[%clk 0:01:00]} 30. Nd6 {[%clk 0:01:54]}  b6 {[%clk 0:00:56]} 31. c6 {[%clk 0:01:53]}  Qc7 {[%clk 0:00:50]} 32. b5 {[%clk 0:01:53]}  a6 {[%clk 0:00:42]} 33. Ne8 {[%clk 0:01:34]}  Qxg3 {[%clk 0:00:17]} 34. fxg3 {[%clk 0:01:35]}  axb5 {[%clk 0:00:15]} 35. c7 {[%clk 0:01:33]}  Ne7 {[%clk 0:00:14]} 36. Nd6 {[%clk 0:01:34]}  Kf8 {[%clk 0:00:11]} 37. c8=Q+ {[%clk 0:01:34]}  Nxc8 {[%clk 0:00:12]} 38. Nxc8 {[%clk 0:01:34]}  b4 {[%clk 0:00:13]} 39. axb4 {[%clk 0:01:33]}  b5 {[%clk 0:00:11]} 40. Nd6 {[%clk 0:01:33]}  Ke7 {[%clk 0:00:12]} 41. Nxb5 {[%clk 0:01:33]}  Kd7 {[%clk 0:00:13]} 42. Kf2 {[%clk 0:01:32]}  Kc6 {[%clk 0:00:13]} 43. Nc3 {[%clk 0:01:32]}  f5 {[%clk 0:00:13]} 44. g4 {[%clk 0:01:30]}  g6 {[%clk 0:00:13]} 45. gxf5 {[%clk 0:01:29]}  exf5 {[%clk 0:00:13]} 46. Ke3 {[%clk 0:01:29]}  g5 {[%clk 0:00:14]} 47. Kd4 {[%clk 0:01:29]}  h5 {[%clk 0:00:14]} 48. Ke5 {[%clk 0:01:29]}  f4 {[%clk 0:00:14]} 49. Kf5 {[%clk 0:01:28]} 1-0


[Site "https://www.chess.com"]

[Event "Titled Tuesday Blitz August 15 Late 2023"]
[White "Janaszak, Dawid"]
[Black "Phillips, Rene"]
[WhiteFideId "1119206"]
[BlackFideId "2056275"]
[WhiteElo "2510"]
[BlackElo "2099"]
[Result "0-1"]
[Round "4"]
[TimeControl "180+1"]
[Date "2023.08.15"]
[WhiteClock "0:00:13"]
[BlackClock "0:00:16"]
[Board "99"]

1. d4 {[%clk 0:03:00]}  Nc6 {[%clk 0:02:59]} 2. d5 {[%clk 0:02:58]}  Ne5 {[%clk 0:02:58]} 3. h4 {[%clk 0:02:58]}  h5 {[%clk 0:02:49]} 4. e4 {[%clk 0:02:55]}  e6 {[%clk 0:02:48]} 5. Nc3 {[%clk 0:02:53]}  Bb4 {[%clk 0:02:47]} 6. Qd4 {[%clk 0:02:52]}  Bxc3+ {[%clk 0:02:42]} 7. Qxc3 {[%clk 0:02:52]}  d6 {[%clk 0:02:36]} 8. f4 {[%clk 0:02:52]}  Ng4 {[%clk 0:02:33]} 9. Qxg7 {[%clk 0:02:51]}  Qf6 {[%clk 0:02:33]} 10. Qxf6 {[%clk 0:02:51]}  N8xf6 {[%clk 0:02:34]} 11. dxe6 {[%clk 0:02:48]}  Bxe6 {[%clk 0:02:33]} 12. Bd3 {[%clk 0:02:45]}  O-O-O {[%clk 0:02:19]} 13. Nf3 {[%clk 0:02:44]}  Rhg8 {[%clk 0:02:15]} 14. f5 {[%clk 0:02:43]}  Bd7 {[%clk 0:02:15]} 15. Bg5 {[%clk 0:02:42]}  Bc6 {[%clk 0:02:14]} 16. O-O {[%clk 0:02:34]}  Rde8 {[%clk 0:02:14]} 17. Bc4 {[%clk 0:02:23]}  Rg7 {[%clk 0:02:08]} 18. Nd2 {[%clk 0:01:52]}  Nxe4 {[%clk 0:02:02]} 19. Nxe4 {[%clk 0:01:52]}  Rxe4 {[%clk 0:01:59]} 20. Bd3 {[%clk 0:01:49]}  Re8 {[%clk 0:01:55]} 21. f6 {[%clk 0:01:48]}  Rgg8 {[%clk 0:01:48]} 22. Rae1 {[%clk 0:01:36]}  Ne5 {[%clk 0:01:46]} 23. Bh7 {[%clk 0:01:32]}  Rh8 {[%clk 0:01:43]} 24. Bf5+ {[%clk 0:01:31]}  Bd7 {[%clk 0:01:38]} 25. Be4 {[%clk 0:01:31]}  Bc6 {[%clk 0:01:37]} 26. Rf2 {[%clk 0:01:19]}  Bxe4 {[%clk 0:01:35]} 27. Rxe4 {[%clk 0:01:20]}  Ng4 {[%clk 0:01:35]} 28. Rfe2 {[%clk 0:01:14]}  Re5 {[%clk 0:01:21]} 29. Rxe5 {[%clk 0:00:58]}  Nxe5 {[%clk 0:01:14]} 30. Kf2 {[%clk 0:00:58]}  Re8 {[%clk 0:01:12]} 31. Kg3 {[%clk 0:00:57]}  Kd7 {[%clk 0:01:11]} 32. Rf2 {[%clk 0:00:52]}  Ng4 {[%clk 0:01:09]} 33. Rf5 {[%clk 0:00:52]}  Re2 {[%clk 0:01:00]} 34. Rb5 {[%clk 0:00:39]}  b6 {[%clk 0:00:54]} 35. c3 {[%clk 0:00:39]}  c6 {[%clk 0:00:45]} 36. Rb4 {[%clk 0:00:38]}  Re6 {[%clk 0:00:39]} 37. Ra4 {[%clk 0:00:32]}  a5 {[%clk 0:00:38]} 38. Rf4 {[%clk 0:00:32]}  Re3+ {[%clk 0:00:29]} 39. Rf3 {[%clk 0:00:32]}  Re2 {[%clk 0:00:28]} 40. Rf4 {[%clk 0:00:24]}  Re3+ {[%clk 0:00:26]} 41. Rf3 {[%clk 0:00:24]}  Re2 {[%clk 0:00:26]} 42. b4 {[%clk 0:00:23]}  Rxa2 {[%clk 0:00:23]} 43. Rf4 {[%clk 0:00:19]}  Ra3 {[%clk 0:00:21]} 44. Rxg4 {[%clk 0:00:19]}  Rxc3+ {[%clk 0:00:18]} 45. Kf4 {[%clk 0:00:17]}  Rc4+ {[%clk 0:00:17]} 46. Kf5 {[%clk 0:00:17]}  Rxg4 {[%clk 0:00:18]} 47. bxa5 {[%clk 0:00:17]}  bxa5 {[%clk 0:00:17]} 48. Bd2 {[%clk 0:00:15]}  a4 {[%clk 0:00:17]} 49. Bb4 {[%clk 0:00:13]}  Rxb4 {[%clk 0:00:16]} 0-1


[Site "https://www.chess.com"]

[Event "Titled Tuesday Blitz August 15 Late 2023"]
[White "Grigorov, Grigor"]
[Black "Zampronha, Wladimir Camilo"]
[WhiteFideId "2907313"]
[BlackFideId "2103087"]
[WhiteElo "2820"]
[BlackElo "2246"]
[Result "1-0"]
[Round "4"]
[TimeControl "180+1"]
[Date "2023.08.15"]
[WhiteClock "0:00:32"]
[BlackClock "0:01:07"]
[Board "100"]

1. d4 {[%clk 0:03:00]}  Nf6 {[%clk 0:02:59]} 2. Nf3 {[%clk 0:03:01]}  e6 {[%clk 0:02:58]} 3. Bg5 {[%clk 0:03:00]}  c5 {[%clk 0:02:57]} 4. e3 {[%clk 0:03:00]}  Be7 {[%clk 0:02:48]} 5. Nbd2 {[%clk 0:02:58]}  cxd4 {[%clk 0:02:45]} 6. exd4 {[%clk 0:02:58]}  Nd5 {[%clk 0:02:42]} 7. Bxe7 {[%clk 0:02:57]}  Qxe7 {[%clk 0:02:43]} 8. c3 {[%clk 0:02:57]}  d6 {[%clk 0:02:41]} 9. Bc4 {[%clk 0:02:44]}  b6 {[%clk 0:02:40]} 10. O-O {[%clk 0:02:39]}  O-O {[%clk 0:02:37]} 11. Re1 {[%clk 0:02:38]}  Nf6 {[%clk 0:02:36]} 12. Qe2 {[%clk 0:02:33]}  a5 {[%clk 0:02:27]} 13. a4 {[%clk 0:02:30]}  Ba6 {[%clk 0:02:26]} 14. h3 {[%clk 0:02:14]}  Bxc4 {[%clk 0:02:23]} 15. Nxc4 {[%clk 0:02:15]}  Nbd7 {[%clk 0:02:22]} 16. Na3 {[%clk 0:02:11]}  Rac8 {[%clk 0:02:16]} 17. Nb5 {[%clk 0:02:10]}  Nd5 {[%clk 0:02:10]} 18. Nd2 {[%clk 0:02:01]}  N7f6 {[%clk 0:02:06]} 19. Qf3 {[%clk 0:01:56]}  Rfd8 {[%clk 0:02:04]} 20. Qg3 {[%clk 0:01:41]}  Nc7 {[%clk 0:01:55]} 21. Na7 {[%clk 0:01:37]}  Ra8 {[%clk 0:01:48]} 22. Nc6 {[%clk 0:01:36]}  Qd7 {[%clk 0:01:48]} 23. Nxd8 {[%clk 0:01:35]}  Rxd8 {[%clk 0:01:48]} 24. Nc4 {[%clk 0:01:31]}  Ncd5 {[%clk 0:01:46]} 25. Qf3 {[%clk 0:01:26]}  Qc6 {[%clk 0:01:46]} 26. Ne3 {[%clk 0:01:25]}  Qc7 {[%clk 0:01:43]} 27. Nc2 {[%clk 0:01:19]}  h6 {[%clk 0:01:41]} 28. Na3 {[%clk 0:01:18]}  Qc6 {[%clk 0:01:39]} 29. Nb5 {[%clk 0:01:17]}  Qd7 {[%clk 0:01:37]} 30. Rac1 {[%clk 0:01:12]}  Nc7 {[%clk 0:01:36]} 31. Qb7 {[%clk 0:01:06]}  Nxb5 {[%clk 0:01:36]} 32. Qxd7 {[%clk 0:01:06]}  Nxd7 {[%clk 0:01:35]} 33. axb5 {[%clk 0:01:07]}  Rc8 {[%clk 0:01:34]} 34. c4 {[%clk 0:00:58]}  Kf8 {[%clk 0:01:33]} 35. f4 {[%clk 0:00:56]}  Nf6 {[%clk 0:01:33]} 36. b3 {[%clk 0:00:53]}  Ke7 {[%clk 0:01:30]} 37. f5 {[%clk 0:00:50]}  Kd7 {[%clk 0:01:31]} 38. fxe6+ {[%clk 0:00:50]}  fxe6 {[%clk 0:01:32]} 39. Re2 {[%clk 0:00:47]}  Ne8 {[%clk 0:01:28]} 40. Rce1 {[%clk 0:00:45]}  Nc7 {[%clk 0:01:29]} 41. Rf2 {[%clk 0:00:45]}  Re8 {[%clk 0:01:16]} 42. Rf7+ {[%clk 0:00:44]}  Re7 {[%clk 0:01:17]} 43. Rxe7+ {[%clk 0:00:44]}  Kxe7 {[%clk 0:01:18]} 44. Kf2 {[%clk 0:00:44]}  d5 {[%clk 0:01:15]} 45. Ke3 {[%clk 0:00:41]}  Kd6 {[%clk 0:01:16]} 46. Kd3 {[%clk 0:00:41]}  Ne8 {[%clk 0:01:12]} 47. c5+ {[%clk 0:00:33]}  Kc7 {[%clk 0:01:07]} 48. Rxe6 {[%clk 0:00:32]} 1-0


[Site "https://www.chess.com"]

[Event "Titled Tuesday Blitz August 15 Late 2023"]
[White "Parligras, Mircea-Emilian"]
[Black "Rangel, Daniel"]
[WhiteFideId "1204297"]
[BlackFideId "2124475"]
[WhiteElo "2762"]
[BlackElo "2423"]
[Result "1-0"]
[Round "4"]
[TimeControl "180+1"]
[Date "2023.08.15"]
[WhiteClock "0:00:27"]
[BlackClock "0:00:06"]
[Board "102"]

1. e4 {[%clk 0:03:00]}  c5 {[%clk 0:02:54]} 2. f4 {[%clk 0:03:00]}  g6 {[%clk 0:02:54]} 3. Nf3 {[%clk 0:02:59]}  Bg7 {[%clk 0:02:53]} 4. d4 {[%clk 0:02:51]}  cxd4 {[%clk 0:02:41]} 5. Nxd4 {[%clk 0:02:52]}  Nc6 {[%clk 0:02:41]} 6. Nb3 {[%clk 0:02:50]}  Nf6 {[%clk 0:02:35]} 7. Nc3 {[%clk 0:02:49]}  O-O {[%clk 0:02:27]} 8. Be2 {[%clk 0:02:44]}  d5 {[%clk 0:02:08]} 9. e5 {[%clk 0:02:39]}  Ne4 {[%clk 0:02:05]} 10. Nxd5 {[%clk 0:02:25]}  Be6 {[%clk 0:01:55]} 11. Ne3 {[%clk 0:02:21]}  Qb6 {[%clk 0:01:47]} 12. Bd3 {[%clk 0:02:14]}  Rfd8 {[%clk 0:01:19]} 13. Qe2 {[%clk 0:02:10]}  Nc5 {[%clk 0:01:04]} 14. Nxc5 {[%clk 0:02:05]}  Qxc5 {[%clk 0:01:05]} 15. O-O {[%clk 0:02:00]}  Nb4 {[%clk 0:01:02]} 16. Be4 {[%clk 0:01:49]}  Nd5 {[%clk 0:00:48]} 17. Kh1 {[%clk 0:01:43]}  Rac8 {[%clk 0:00:43]} 18. c3 {[%clk 0:01:38]}  Nb6 {[%clk 0:00:32]} 19. Qf3 {[%clk 0:01:25]}  Rc7 {[%clk 0:00:25]} 20. h3 {[%clk 0:01:23]}  Rcd7 {[%clk 0:00:23]} 21. Bxb7 {[%clk 0:01:18]}  Nc4 {[%clk 0:00:19]} 22. Nxc4 {[%clk 0:01:13]}  Bxc4 {[%clk 0:00:20]} 23. Be3 {[%clk 0:01:06]}  Qb5 {[%clk 0:00:19]} 24. Bc6 {[%clk 0:01:02]}  Qxb2 {[%clk 0:00:18]} 25. Rfb1 {[%clk 0:00:48]}  Qxc3 {[%clk 0:00:18]} 26. Bxd7 {[%clk 0:00:47]}  Rxd7 {[%clk 0:00:19]} 27. Rb8+ {[%clk 0:00:40]}  Bf8 {[%clk 0:00:19]} 28. Rc1 {[%clk 0:00:39]}  Qd3 {[%clk 0:00:17]} 29. f5 {[%clk 0:00:32]}  Bd5 {[%clk 0:00:16]} 30. Bh6 {[%clk 0:00:28]}  Bxf3 {[%clk 0:00:06]} 31. Rxf8# {[%clk 0:00:27]} 1-0


[Site "https://www.chess.com"]